bitfinex/quotes_SOLUSD_20240603
["timestamp","ask_amount","ask_price","bid_price","bid_amount"]
[1717390319198,7.2809,163.65,163.61,2.2614]
[1717390320528,2.261,163.64,163.6,2.2615]
[1717390320716,5.02,163.65,163.6,2.2615]
[1717390321050,7.281,163.65,163.61,2.2614]
[1717390321707,2.2607,163.66,163.62,2.2613]
[1717390321906,7.2807,163.66,163.61,2.2614]
[1717390322123,5.02,163.65,163.61,2.2614]
[1717390322431,5.02,163.64,163.61,2.2614]
[1717390323497,7.281,163.64,163.6,2.2616]
[1717390323838,5.02,163.64,163.6,2.2616]
[1717390324324,7.281,163.64,163.6,2.2616]
[1717390325020,5.02,163.64,163.6,2.2616]
[1717390325407,7.281,163.64,163.59,47.2616]
[1717390325609,7.281,163.64,163.6,45.0]
[1717390325828,5.02,163.64,163.6,2.2615]
[1717390326421,16.3228,163.68,163.59,2.2616]
[1717390326422,7.2812,163.63,163.59,2.2616]
[1717390326898,7.2813,163.62,163.58,47.2618]
[1717390327102,5.02,163.62,163.59,47.2617]
[1717390327305,5.02,163.62,163.59,2.2617]
[1717390328122,5.02,163.62,163.6,2.2615]
[1717390329423,5.02,163.62,163.59,2.2617]
[1717390331529,5.02,163.61,163.57,45.0]
[1717390332244,7.2814,163.61,163.57,47.2619]
[1717390332534,5.02,163.61,163.58,2.2618]
[1717390332743,15.2237,163.66,163.57,45.0]
[1717390332744,19.7453,163.66,163.57,45.0]
[1717390332926,15.2237,163.66,163.58,4.5237]
[1717390333122,5.02,163.64,163.61,2.2614]
[1717390333525,7.281,163.64,163.6,2.2615]
[1717390335442,7.281,163.64,163.59,45.0]
[1717390335443,2.2612,163.63,163.59,47.2616]
[1717390335625,2.2612,163.63,163.6,45.0]
[1717390335824,7.2812,163.63,163.59,2.2616]
[1717390336134,2.2612,163.63,163.59,2.2616]
[1717390336334,5.02,163.64,163.58,45.0]
[1717390336635,2.261,163.64,163.6,2.2615]
[1717390336812,5.02,163.65,163.61,2.2614]
[1717390337008,7.2808,163.66,163.62,2.2613]
[1717390337433,2.2608,163.66,163.62,2.2613]
[1717390337613,2.2608,163.66,163.61,2.2614]
[1717390337933,2.2609,163.65,163.61,2.2614]
[1717390338139,4.5208,163.69,163.6,50.02]
[1717390338344,5.02,163.66,163.6,50.02]
[1717390338516,21.4853,163.7,163.61,5.02]
[1717390338836,7.2805,163.68,163.64,2.261]
[1717390340138,2.2605,163.68,163.64,2.261]
[1717390340346,7.2805,163.68,163.64,2.261]
[1717390341030,7.2805,163.68,163.63,2.2611]
[1717390341242,7.2805,163.68,163.62,50.02]
[1717390341243,5.02,163.68,163.64,2.261]
[1717390341432,7.2805,163.68,163.64,2.261]
[1717390341630,6.3769,163.7,163.62,45.0]
[1717390341631,4.5208,163.69,163.62,45.0]
[1717390341824,7.2807,163.67,163.62,2.2613]
[1717390342231,2.2607,163.67,163.63,2.2611]
[1717390342439,7.2805,163.68,163.63,2.2611]
[1717390342734,7.2805,163.68,163.63,47.2611]
[1717390344140,2.2606,163.67,163.63,47.2611]
[1717390344936,7.2805,163.68,163.64,2.261]
[1717390345154,7.2805,163.68,163.64,47.261]
[1717390345535,7.2805,163.68,163.65,45.0]
[1717390345838,7.2805,163.68,163.64,2.261]
[1717390346042,7.2805,163.68,163.63,47.2611]
[1717390346844,5.02,163.68,163.64,2.261]
[1717390347220,5.02,163.68,163.65,2.2608]
[1717390347433,7.2803,163.69,163.65,2.2608]
[1717390347938,5.02,163.68,163.65,2.2608]
[1717390348141,4.52,163.72,163.64,2.2609]
[1717390348440,2.2601,163.71,163.66,2.2606]
[1717390348656,5.02,163.7,163.66,2.2606]
[1717390348828,4.5198,163.73,163.65,47.2609]
[1717390349154,5.02,163.69,163.65,47.2609]
[1717390349326,7.2803,163.7,163.65,47.2609]
[1717390349657,7.2803,163.7,163.66,2.2607]
[1717390349834,2.2601,163.71,163.66,2.2606]
[1717390350033,7.2801,163.71,163.66,2.2606]
[1717390351823,2.2601,163.71,163.66,2.2606]
[1717390352024,7.2801,163.71,163.66,2.2606]
[1717390352749,2.2604,163.69,163.65,47.2608]
[1717390353442,7.2802,163.7,163.65,47.2608]
[1717390354522,2.2604,163.69,163.65,47.2608]
[1717390354964,7.2803,163.7,163.66,2.2607]
[1717390355569,5.02,163.7,163.66,2.2607]
[1717390355740,2.2601,163.71,163.66,2.2607]
[1717390355957,2.2602,163.7,163.66,2.2607]
[1717390356256,7.2802,163.7,163.65,47.2608]
[1717390356437,7.2802,163.7,163.65,2.2608]
[1717390356633,7.2802,163.7,163.64,50.02]
[1717390356634,7.2802,163.7,163.66,2.2607]
[1717390357647,7.2801,163.71,163.67,2.2605]
[1717390358552,2.2602,163.7,163.66,47.2607]
[1717390359547,7.2801,163.71,163.67,2.2606]
[1717390360036,2.2601,163.71,163.67,2.2606]
[1717390360950,2.2602,163.7,163.66,47.2607]
[1717390363748,7.2801,163.71,163.67,2.2606]
[1717390364056,2.2602,163.7,163.66,47.2607]
[1717390364248,2.2602,163.7,163.67,2.2606]
[1717390364440,2.2602,163.7,163.66,2.2607]
[1717390364781,2.2603,163.69,163.65,47.2608]
[1717390365853,2.2603,163.69,163.65,2.2608]
[1717390367262,7.2802,163.7,163.66,2.2607]
[1717390368761,2.2603,163.69,163.66,2.2607]
[1717390368963,7.2802,163.7,163.66,2.2607]
[1717390369641,2.2602,163.7,163.66,2.2607]
[1717390369840,7.2802,163.7,163.66,2.2607]
[1717390372463,7.2802,163.7,163.64,45.0]
[1717390372464,5.02,163.7,163.67,2.2606]
[1717390373557,5.02,163.69,163.61,6.0489]
[1717390373770,7.2805,163.68,163.64,2.2609]
[1717390374455,2.2605,163.68,163.64,8.7458]
[1717390374661,2.2604,163.69,163.65,8.7458]
[1717390374841,2.2604,163.69,163.66,2.2607]
[1717390375051,2.2604,163.69,163.65,8.7457]
[1717390375256,2.2603,163.7,163.66,2.2607]
[1717390375452,2.2603,163.7,163.66,47.2607]
[1717390376055,2.2603,163.69,163.66,47.2607]
[1717390376460,2.2603,163.69,163.66,45.0]
[1717390378363,2.2605,163.68,163.66,45.0]
[1717390378549,7.2804,163.69,163.66,45.0]
[1717390379284,2.2605,163.68,163.66,45.0]
[1717390379583,2.2606,163.67,163.66,45.0]
[1717390379790,7.2805,163.68,163.66,45.0]
[1717390380081,2.2604,163.69,163.66,45.0]
[1717390380381,5.02,163.68,163.66,45.0]
[1717390381170,7.2805,163.68,163.66,45.0]
[1717390382491,5.02,163.68,163.66,45.0]
[1717390382654,2.2604,163.69,163.66,45.0]
[1717390382859,7.2804,163.69,163.66,45.0]
[1717390383978,2.2605,163.68,163.66,45.0]
[1717390384865,7.2804,163.69,163.66,45.0]
[1717390385785,2.2605,163.68,163.66,45.0]
[1717390386475,7.2804,163.69,163.66,45.0]
[1717390387504,2.2606,163.68,163.66,45.0]
[1717390388488,2.261,163.65,163.61,17.89644939]
[1717390388798,2.2609,163.65,163.61,11.41154939]
[1717390388990,7.2808,163.66,163.62,2.2613]
[1717390389401,2.2609,163.65,163.62,2.2613]
[1717390389568,7.2808,163.66,163.62,2.2612]
[1717390389768,7.2808,163.66,163.6,5.02]
[1717390389982,7.2808,163.66,163.62,2.2612]
[1717390391163,2.2608,163.66,163.62,2.2612]
[1717390391586,7.2808,163.66,163.62,2.2612]
[1717390391788,2.2608,163.66,163.62,2.2612]
[1717390391991,7.2808,163.66,163.62,2.2612]
[1717390392696,2.2608,163.66,163.62,2.2612]
[1717390392866,7.2808,163.66,163.62,2.2612]
[1717390393191,5.02,163.66,163.63,2.2611]
[1717390393494,7.2807,163.66,163.62,2.2612]
[1717390393671,2.2607,163.66,163.62,2.2612]
[1717390393873,7.2807,163.66,163.62,2.2612]
[1717390394398,5.02,163.66,163.63,2.2611]
[1717390394567,2.2606,163.67,163.63,2.2611]
[1717390394776,7.2806,163.67,163.63,2.2611]
[1717390395067,5.02,163.67,163.61,45.0]
[1717390395262,2.2607,163.67,163.63,2.2611]
[1717390396795,5.02,163.68,163.61,54.5427]
[1717390396974,7.2804,163.69,163.65,2.2608]
[1717390397890,2.2605,163.68,163.64,47.261]
[1717390398100,2.2605,163.68,163.65,2.2609]
[1717390398281,2.2605,163.68,163.64,47.2609]
[1717390398482,2.2605,163.68,163.64,2.2609]
[1717390398878,2.2605,163.68,163.65,2.2609]
[1717390399078,7.2804,163.69,163.65,2.2609]
[1717390400007,2.2604,163.69,163.65,2.2609]
[1717390400181,4.5201,163.72,163.64,5.02]
[1717390400497,7.2803,163.69,163.65,47.2608]
[1717390400679,7.2803,163.69,163.65,2.2608]
[1717390401704,2.2603,163.69,163.65,2.2608]
[1717390401878,7.2803,163.69,163.65,2.2608]
[1717390402080,2.2603,163.69,163.65,2.2608]
[1717390402316,7.2803,163.69,163.65,2.2608]
[1717390403546,2.2603,163.69,163.65,2.2608]
[1717390405293,2.2597,163.74,163.7,2.2602]
[1717390405877,2.2597,163.74,163.69,52.2803]
[1717390406300,2.2598,163.73,163.69,52.2803]
[1717390406506,2.2598,163.73,163.69,47.2603]
[1717390407183,2.2598,163.73,163.69,52.2803]
[1717390410607,2.2598,163.73,163.69,47.2603]
[1717390416696,7.2797,163.74,163.7,2.2602]
[1717390417215,4.5189,163.76,163.69,45.0]
[1717390417396,7.2797,163.74,163.7,2.2602]
[1717390417607,0.8151569,163.79,163.7,71.3008]
[1717390417912,2.2592,163.78,163.71,54.54]
[1717390418088,7.2792,163.78,163.72,5.02]
[1717390418290,7.2792,163.78,163.73,45.0]
[1717390418689,7.2792,163.78,163.73,47.2597]
[1717390418894,2.2592,163.78,163.73,47.2597]
[1717390419093,0.8151569,163.79,163.73,45.0]
[1717390419094,2.2595,163.76,163.73,45.0]
[1717390419300,7.2794,163.76,163.72,45.0]
[1717390419600,7.2795,163.75,163.72,45.0]
[1717390419800,2.2595,163.75,163.72,45.0]
[1717390420100,2.2595,163.75,163.71,47.26]
[1717390420331,2.2597,163.74,163.71,45.0]
[1717390420494,7.2797,163.74,163.71,45.0]
[1717390420689,7.2798,163.73,163.68,2.2603]
[1717390420893,5.02,163.72,163.68,2.2603]
[1717390421101,7.2798,163.73,163.69,2.2603]
[1717390421708,5.02,163.73,163.69,2.2603]
[1717390421921,4.5184,163.78,163.67,6.4151]
[1717390422230,7.2795,163.75,163.71,2.26]
[1717390422896,7.2795,163.75,163.7,47.2601]
[1717390423215,7.2796,163.74,163.7,47.2601]
[1717390423393,5.02,163.74,163.7,2.2601]
[1717390423591,7.2795,163.75,163.7,2.2601]
[1717390424021,5.02,163.74,163.7,2.2601]
[1717390424402,2.2595,163.75,163.7,2.2601]
[1717390424608,5.02,163.74,163.71,2.26]
[1717390424808,5.02,163.74,163.7,2.2601]
[1717390425218,2.2595,163.75,163.7,2.2601]
[1717390425546,5.02,163.74,163.71,2.26]
[1717390425720,7.2794,163.76,163.72,2.2599]
[1717390427019,2.2594,163.76,163.72,2.2599]
[1717390427231,7.2794,163.76,163.72,2.2599]
[1717390427401,7.2793,163.77,163.72,2.2599]
[1717390427649,0.8151569,163.79,163.74,2.2595]
[1717390427811,2.2592,163.77,163.73,2.2597]
[1717390428005,7.2792,163.77,163.73,2.2597]
[1717390428210,0.8151569,163.79,163.72,9.0397]
[1717390428415,0.8151569,163.79,163.74,5.02]
[1717390428720,3.0741569,163.79,163.75,47.2594]
[1717390428915,0.8151569,163.79,163.75,47.2594]
[1717390429314,0.8151569,163.79,163.76,2.2593]
[1717390429522,0.8151569,163.79,163.75,53.2606]
[1717390430021,0.8151569,163.79,163.75,58.2806]
[1717390432929,3.0740569,163.79,163.75,58.2806]
[1717390433823,3.0740569,163.79,163.75,52.2794]
[1717390434205,3.0740569,163.79,163.75,47.2594]
[1717390436255,0.8151569,163.79,163.75,47.2594]
[1717390436612,0.8151569,163.79,163.76,2.2593]
[1717390436810,3.0741569,163.79,163.75,47.2594]
[1717390437116,3.0741569,163.79,163.76,45.0]
[1717390437319,3.0741569,163.79,163.75,2.2594]
[1717390437705,3.0741569,163.79,163.75,7.2794]
[1717390437904,0.8151569,163.79,163.76,47.2593]
[1717390438998,0.8151569,163.79,163.77,2.2592]
[1717390439217,0.8151569,163.79,163.76,52.2793]
[1717390440031,0.8151569,163.79,163.76,47.2593]
[1717390442231,3.0741569,163.79,163.76,45.0]
[1717390442919,3.0741569,163.79,163.75,47.2595]
[1717390443808,0.8151569,163.79,163.76,2.2593]
[1717390444012,3.0740569,163.79,163.76,47.2593]
[1717390444211,3.0740569,163.79,163.76,45.0]
[1717390444425,0.8151569,163.79,163.76,2.2593]
[1717390444726,0.8151569,163.79,163.76,47.2593]
[1717390445033,0.8151569,163.79,163.76,2.2593]
[1717390445809,0.8151569,163.79,163.76,7.2793]
[1717390446131,0.8151569,163.79,163.77,47.73823918]
[1717390446465,0.8151569,163.79,163.77,45.0]
[1717390446835,0.8151569,163.79,163.76,47.2593]
[1717390447429,0.8151569,163.79,163.78,2.2591]
[1717390447634,0.8151569,163.79,163.78,45.0]
[1717390448112,0.8151569,163.79,163.77,47.2592]
[1717390448931,0.8151569,163.79,163.78,2.2591]
[1717390449113,0.8151569,163.79,163.78,47.2591]
[1717390449314,0.8151569,163.79,163.78,45.0]
[1717390450328,0.8151569,163.79,163.77,47.2592]
[1717390450929,0.8151569,163.79,163.77,45.0]
[1717390451108,0.8151569,163.79,163.78,18.5746]
[1717390451311,0.8151569,163.79,163.78,59.23622187]
[1717390452210,0.8151569,163.79,163.78,61.49532187]
[1717390452411,0.8151569,163.79,163.78,65.8338]
[1717390453233,0.8151569,163.79,163.78,56.7973]
[1717390453624,0.8151569,163.79,163.78,52.2791]
[1717390453819,0.8151569,163.79,163.78,58.2825]
[1717390454029,0.8151569,163.79,163.78,53.2625]
[1717390454337,0.8151569,163.79,163.78,52.2791]
[1717390456145,0.8151569,163.79,163.78,47.2591]
[1717390456315,0.8151569,163.79,163.78,2.2591]
[1717390456517,0.8151569,163.79,163.77,2.2591]
[1717390457422,0.8151569,163.79,163.78,2.2591]
[1717390460047,0.8151569,163.79,163.78,7.2791]
[1717390460219,0.8151569,163.79,163.78,52.2791]
[1717390461013,0.8151569,163.79,163.78,131.9183]
[1717390461239,0.8151569,163.79,163.78,165.1466]
[1717390461433,0.8151569,163.79,163.78,176.3226]
[1717390461641,0.8151569,163.79,163.78,165.1466]
[1717390462724,2.2577,163.88,163.84,2.2582]
[1717390463237,2.2577,163.88,163.84,45.0]
[1717390464319,2.2576,163.89,163.84,47.2582]
[1717390464659,7.2775,163.9,163.85,2.2581]
[1717390464825,7.2775,163.9,163.85,47.2581]
[1717390465026,2.2576,163.89,163.85,47.2581]
[1717390465229,2.2576,163.89,163.85,45.0]
[1717390465460,2.2575,163.9,163.85,47.2581]
[1717390465678,5.02,163.89,163.85,47.2581]
[1717390465829,5.02,163.89,163.85,2.2581]
[1717390466029,2.2576,163.89,163.85,2.2581]
[1717390466354,5.05809647,163.91,163.87,2.2578]
[1717390466644,2.29549647,163.91,163.86,47.2579]
[1717390466944,5.05809647,163.91,163.86,47.2579]
[1717390467244,5.02,163.9,163.86,45.0]
[1717390467542,7.2775,163.9,163.86,45.0]
[1717390467749,7.2775,163.9,163.86,2.258]
[1717390467943,2.2575,163.9,163.86,47.258]
[1717390468250,5.05809647,163.91,163.87,2.2578]
[1717390468541,2.2574,163.9,163.87,45.0]
[1717390468740,2.2576,163.89,163.87,45.0]
[1717390468946,2.2576,163.89,163.86,45.0]
[1717390469446,0.03809647,163.91,163.86,50.02]
[1717390469648,0.03809647,163.91,163.87,2.2578]
[1717390469649,2.29539647,163.91,163.87,2.2578]
[1717390469825,0.03809647,163.91,163.87,2.2578]
[1717390470032,0.03809647,163.91,163.89,2.2575]
[1717390470549,0.03809647,163.91,163.88,45.0]
[1717390470550,0.03809647,163.91,163.88,47.2576]
[1717390472758,0.03809647,163.91,163.88,2.2576]
[1717390473061,5.05809647,163.91,163.88,2.2576]
[1717390473759,7.31539647,163.91,163.87,2.2578]
[1717390474130,0.03809647,163.91,163.88,2.2577]
[1717390474338,0.03809647,163.91,163.89,2.2575]
[1717390474665,0.03809647,163.91,163.88,2.2577]
[1717390475052,0.03809647,163.91,163.89,2.2576]
[1717390475443,0.03809647,163.91,163.9,2.2574]
[1717390475979,0.03809647,163.91,163.9,47.2574]
[1717390476835,0.03809647,163.91,163.9,2.2574]
[1717390478663,0.03809647,163.91,163.89,52.2775]
[1717390478862,0.03809647,163.91,163.89,45.0]
[1717390479278,0.03809647,163.91,163.89,2.2575]
[1717390479444,0.03809647,163.91,163.89,47.2575]
[1717390479762,0.03809647,163.91,163.89,45.0]
[1717390480062,0.03809647,163.91,163.89,2.2576]
[1717390480462,0.03809647,163.91,163.9,2.2574]
[1717390480673,0.03809647,163.91,163.9,47.2574]
[1717390481141,0.03809647,163.91,163.9,2.2574]
[1717390481966,0.03809647,163.91,163.9,25.2014]
[1717390482142,0.03809647,163.91,163.9,70.2014]
[1717390482540,0.03809647,163.91,163.9,70.5414]
[1717390483065,0.03809647,163.91,163.9,79.5712]
[1717390484258,0.03809647,163.91,163.9,99.5712]
[1717390484959,0.8151569,163.96,163.92,60.0]
[1717390485173,0.8151569,163.96,163.94,7.2768]
[1717390485351,0.8151569,163.96,163.92,7.2771]
[1717390485763,0.8151569,163.96,163.93,2.257]
[1717390486338,0.8151569,163.96,163.94,2.2568]
[1717390486955,0.8151569,163.96,163.95,2.2567]
[1717390487164,0.8151569,163.96,163.94,7.2768]
[1717390487380,0.8151569,163.96,163.95,45.0]
[1717390487875,0.8151569,163.96,163.94,47.2568]
[1717390488246,0.8151569,163.96,163.94,45.0]
[1717390489272,0.8151569,163.96,163.94,47.2568]
[1717390490587,0.8151569,163.96,163.94,45.0]
[1717390492081,0.8151569,163.96,163.94,47.2569]
[1717390492255,0.8151569,163.96,163.94,47.2568]
[1717390492752,0.8151569,163.96,163.94,45.0]
[1717390493250,0.8151569,163.96,163.94,47.2569]
[1717390494872,0.8151569,163.96,163.94,45.0]
[1717390495469,0.8151569,163.96,163.94,47.2568]
[1717390495688,0.8151569,163.96,163.94,2.2568]
[1717390496477,0.8151569,163.96,163.95,2.2567]
[1717390496658,0.8151569,163.96,163.95,47.2567]
[1717390497482,0.8151569,163.96,163.95,45.0]
[1717390497652,0.8151569,163.96,163.94,47.2568]
[1717390498184,0.8151569,163.96,163.95,2.2567]
[1717390498774,0.8151569,163.96,163.95,47.2567]
[1717390500781,0.8151569,163.96,163.95,2.2567]
[1717390502257,0.8151569,163.96,163.94,2.2568]
[1717390502658,0.8151569,163.96,163.95,2.2567]
[1717390504073,0.8151569,163.96,163.95,47.2567]
[1717390505364,0.8151569,163.96,163.95,2.2567]
[1717390507176,0.8151569,163.96,163.94,47.2568]
[1717390507568,0.8151569,163.96,163.95,45.0]
[1717390507785,0.8151569,163.96,163.95,2.2567]
[1717390510671,0.8151569,163.96,163.91,11.2864]
[1717390511002,0.8151569,163.96,163.93,2.2569]
[1717390511177,0.8151569,163.96,163.95,2.2567]
[1717390512801,0.8151569,163.96,163.95,47.2567]
[1717390513992,0.8151569,163.96,163.95,51.7702]
[1717390515789,0.8151569,163.96,163.95,47.2567]
[1717390517780,0.8151569,163.96,163.95,52.2767]
[1717390518101,0.8151569,163.96,163.95,127.5676]
[1717390520309,5.3507096,164.02,163.93,6.2863]
[1717390520310,5.02,163.99,163.93,9.5341]
[1717390520473,0.3307096,164.02,163.95,9.5335]
[1717390520698,13.4331,164.01,163.97,2.2564]
[1717390521191,8.4131,164.01,163.97,2.2564]
[1717390521472,11.1771,164.01,163.97,2.2564]
[1717390521784,6.1571,164.01,163.98,2.2563]
[1717390522299,11.1771,164.01,163.98,2.2563]
[1717390522594,0.3307096,164.02,163.97,5.02]
[1717390522892,0.3307096,164.02,164.0,2.2559]
[1717390523390,0.3307096,164.02,164.01,2.2559]
[1717390523593,0.3307096,164.02,164.01,47.2559]
[1717390524310,0.3307096,164.02,164.01,45.0]
[1717390525591,13.7786096,164.02,164.01,45.0]
[1717390525774,13.7786096,164.02,163.98,2.2563]
[1717390526785,2.5865096,164.02,163.98,2.2563]
[1717390526988,5.3507096,164.02,163.99,2.2562]
[1717390527396,7.6065096,164.02,163.98,2.2563]
[1717390528612,2.5865096,164.02,163.98,2.2563]
[1717390528787,0.3307096,164.02,163.99,2.2561]
[1717390530707,0.3307096,164.02,164.0,2.256]
[1717390530888,0.3307096,164.02,163.99,2.2561]
[1717390531103,0.3307096,164.02,163.99,47.2561]
[1717390531608,0.3307096,164.02,164.0,45.0]
[1717390531913,0.3307096,164.02,163.99,2.2561]
[1717390532925,2.5865096,164.02,163.98,47.2563]
[1717390533783,0.3307096,164.02,163.99,2.2561]
[1717390535493,0.3307096,164.02,163.99,47.2561]
[1717390537311,0.3307096,164.02,164.01,105.5537]
[1717390537508,23.1431,164.14,164.06,2.2551]
[1717390537509,7.2746,164.11,164.06,2.2551]
[1717390537698,7.2746,164.11,164.06,2.2552]
[1717390538199,5.02,164.11,164.08,2.2549]
[1717390538497,8.0895569,164.12,164.07,2.255]
[1717390538711,8.0895569,164.12,164.07,47.255]
[1717390538916,2.2545,164.11,164.07,47.255]
[1717390539115,2.2545,164.11,164.07,45.0]
[1717390539903,2.2547,164.1,164.07,45.0]
[1717390540093,13.9297,164.1,164.07,45.0]
[1717390540404,5.02,164.09,164.07,45.0]
[1717390541038,0.8151569,164.12,164.08,11.6478]
[1717390541320,0.8151569,164.12,164.1,2.2546]
[1717390541585,0.8151569,164.12,164.11,2.2545]
[1717390542514,0.8151569,164.12,164.11,7.2745]
[1717390542707,0.8151569,164.12,164.11,52.2745]
[1717390543261,6.655,164.2,164.11,52.2745]
[1717390543262,2.2536,164.19,164.11,116.6478]
[1717390543522,7.2735,164.19,164.13,11.131]
[1717390544024,5.02,164.18,164.12,2.2543]
[1717390544195,5.02,164.17,164.12,2.2543]
[1717390544402,7.2737,164.17,164.12,2.2543]
[1717390544612,5.02,164.17,164.13,2.2542]
[1717390544828,16.4881,164.27,164.13,66.111]
[1717390545008,5.02,164.22,164.14,20.0]
[1717390545196,5.02,164.22,164.13,60.0]
[1717390545197,5.02,164.21,164.17,2.2537]
[1717390545611,2.2531,164.22,164.17,2.2537]
[1717390545819,7.2731,164.22,164.17,2.2537]
[1717390546322,4.5054,164.25,164.17,2.2537]
[1717390546533,5.02,164.21,164.17,2.2537]
[1717390546836,5.02,164.22,164.18,2.2536]
[1717390547610,7.273,164.23,164.18,2.2536]
[1717390547855,2.2527,164.25,164.2,2.2532]
[1717390548021,7.2727,164.25,164.2,2.2532]
[1717390548205,7.2727,164.25,164.2,47.2532]
[1717390549125,2.2528,164.24,164.2,45.0]
[1717390550336,2.2529,164.23,164.2,45.0]
[1717390550638,5.02,164.22,164.2,45.0]
[1717390551325,11.1459,164.26,164.2,45.0]
[1717390551521,7.2728,164.24,164.2,45.0]
[1717390551729,7.2728,164.24,164.19,47.2534]
[1717390552442,7.2728,164.24,164.2,2.2533]
[1717390552626,7.2728,164.24,164.2,47.2533]
[1717390552930,7.2728,164.24,164.2,45.0]
[1717390553130,2.2529,164.23,164.19,47.2534]
[1717390553514,7.2728,164.24,164.2,45.0]
[1717390553714,7.2728,164.24,164.19,2.2534]
[1717390554332,7.2728,164.24,164.2,2.2533]
[1717390554832,7.2728,164.24,164.19,2.2534]
[1717390556411,2.2529,164.23,164.19,2.2534]
[1717390557007,7.2729,164.23,164.19,2.2534]
[1717390557807,11.4591,164.23,164.19,2.2534]
[1717390558227,13.712,164.23,164.19,2.2534]
[1717390558531,5.02,164.21,164.18,45.0]
[1717390558905,5.02,164.21,164.17,47.2536]
[1717390559232,2.2531,164.22,164.18,2.2536]
[1717390559536,5.02,164.21,164.18,2.2536]
[1717390560323,7.2732,164.21,164.17,47.2537]
[1717390560523,2.253,164.22,164.18,47.2535]
[1717390566570,15.7698,164.24,164.14,6.7623]
[1717390566758,7.2737,164.18,164.14,2.254]
[1717390566940,7.2736,164.18,164.12,5.02]
[1717390567139,2.2535,164.19,164.12,5.02]
[1717390567327,5.02,164.18,164.15,2.2539]
[1717390567544,5.02,164.18,164.13,10.6195]
[1717390567838,5.02,164.18,164.15,2.2539]
[1717390568145,7.2735,164.19,164.15,2.2539]
[1717390568454,7.2735,164.19,164.16,2.2538]
[1717390568956,7.2735,164.19,164.15,2.2539]
[1717390569138,2.2536,164.18,164.14,47.2541]
[1717390570068,2.2538,164.17,164.14,45.0]
[1717390570235,2.2538,164.17,164.13,2.2542]
[1717390570443,2.254,164.15,164.11,2.2544]
[1717390570645,5.02,164.15,164.09,9.5296]
[1717390570856,2.2539,164.16,164.12,2.2544]
[1717390571040,7.274,164.15,164.11,2.2545]
[1717390571240,5.02,164.15,164.11,2.2545]
[1717390571449,7.274,164.15,164.09,5.02]
[1717390571852,7.274,164.15,164.11,2.2545]
[1717390572252,2.254,164.15,164.11,2.2545]
[1717390572458,7.274,164.15,164.11,2.2545]
[1717390572763,7.2741,164.14,164.1,47.2546]
[1717390572940,7.2741,164.14,164.1,2.2546]
[1717390574664,5.02,164.14,164.11,2.2545]
[1717390575156,5.02,164.14,164.1,2.2546]
[1717390575363,5.02,164.14,164.09,47.2547]
[1717390575364,5.02,164.13,164.09,47.2547]
[1717390575664,2.2544,164.12,164.08,2.2549]
[1717390575863,2.2547,164.1,164.03,4.5112]
[1717390576035,5.02,164.1,164.07,2.2551]
[1717390576234,5.02,164.11,164.05,9.5306]
[1717390576456,5.02,164.11,164.08,2.2549]
[1717390577030,7.2745,164.11,164.07,2.255]
[1717390577260,5.02,164.11,164.08,2.2549]
[1717390577451,5.02,164.11,164.06,45.0]
[1717390577452,5.02,164.1,164.06,45.0]
[1717390577855,2.2548,164.1,164.06,47.2552]
[1717390578167,7.2748,164.1,164.06,47.2552]